{"text_format":"3","workbook":"xlsx","n_sheets":4,"sheets":["Έναρξη","Έξοδα","Έσοδα","Σύνοψη"],"not_rendered":{"charts":1,"defined_names":2},"read":"whole","date_system":"1900"}

{"sheet":"Έναρξη","index":0,"n_rows":8,"n_cols":2,"rows_kept":8}
[null,"ΠΛΗΡΟΦΟΡΙΕΣ ΓΙΑ ΑΥΤΟ ΤΟ ΠΡΟΤΥΠΟ"]
[null,"Χρησιμοποιήστε αυτό το βιβλίο εργασίας προϋπολογισμού εκδήλωσης για να παρακολουθείτε τα έξοδα και τα έσοδα που προκύπτουν από μια εκδήλωση."]
[null,"Συμπληρώστε το όνομα της εκδήλωσης και εισαγάγετε τις λεπτομέρειες στους πίνακες των φύλλων εργασίας \"Έξοδα\" και \"Έσοδα\"."]
[null,"Τα συνολικά έξοδα και τα συνολικά έσοδα υπολογίζονται αυτόματα."]
[null,"Η σύνοψη και το σύνοψη κερδών/ζημιών ενημερώνονται αυτόματα στο φύλλο εργασίας \"Σύνοψη\"."]
[null,"Σημείωση: "]
[null,"Στη στήλη A σε κάθε φύλλο εργασίας παρέχονται πρόσθετες οδηγίες. Αυτό το κείμενο είναι κρυφό σκόπιμα. Για να καταργήσετε το κείμενο, επιλέξτε τη στήλη A και, στη συνέχεια, πατήστε το πλήκτρο DELETE. Για να εμφανίσετε το κείμενο, επιλέξτε τη στήλη A και, στη συνέχεια, αλλάξτε το χρώμα γραμματοσειράς."]
[null,"Για να μάθετε περισσότερα για τους πίνακες, πατήστε το πλήκτρο SHIFT και, στη συνέχεια, πατήστε το F10 μέσα σε έναν πίνακα, επιλέξτε \"ΠΙΝΑΚΑΣ\" και, στη συνέχεια, επιλέξτε \"ΕΝΑΛΛΑΚΤΙΚΟ ΚΕΙΜΕΝΟ\"."]

{"sheet":"Έξοδα","index":1,"n_rows":33,"n_cols":8,"rows_kept":33,"merged":[[0,5,0,7],[1,1,1,7],[2,6,2,7]]}
["Εισαγάγετε τα εκτιμώμενα και τα πραγματικά έξοδα για κάθε κατηγορία στους αντίστοιχους πίνακες σε αυτό το φύλλο εργασίας. Τα συνολικά έξοδα υπολογίζονται αυτόματα. Σε διάφορα κελιά σε αυτή τη στήλη βρίσκονται χρήσιμες οδηγίες για τον τρόπο χρήσης αυτού του φύλλου εργασίας. Πατήστε το κάτω βέλος για να ξεκινήσετε."]
["Εισαγάγετε το όνομα εκδήλωσης στο κελί στα δεξιά για να προσαρμόσετε τον τίτλο αυτού αλλά και άλλων φύλλων εργασίας.","Προϋπολογισμός εκδήλωσης για \nΌνομα εκδήλωσης"]
["Η ετικέτα έξοδα βρίσκεται στο κελί G3.",{"$nulls":5}," Έξοδα"]
["Η ετικέτα εκτιμώμενα βρίσκεται στο κελί G4 και η ετικέτα πραγματικά στο κελί H4.",{"$nulls":5},"Εκτιμώμενα","Πραγματικά"]
["Η ετικέτα συνολικά έξοδα βρίσκεται στο κελί στα δεξιά. Τα εκτιμώμενα συνολικά έξοδα υπολογίζονται αυτόματα στο κελί G5. Τα πραγματικά συνολικά έξοδα και η ράβδος δεδομένων που απεικονίζει τα πραγματικά συνολικά έξοδα ενημερώνονται αυτόματα στο κελί Η5. Η επόμενη οδηγία βρίσκεται στο κελί A7.","Συνολικά έξοδα",{"$nulls":4},{"$f":"SUM(C12,C20,C26,C33,G12,G20,G25)","v":{"v":1145,"d":"1,145.00 €"}},{"$f":"SUM(D12,D20,D26,D33,H12,H20,H25)","v":{"v":395,"d":"395.00 €"}}]
[]
["Εισαγάγετε τα έξοδα χώρου στον πίνακα που ξεκινάει από το κελί στα δεξιά και τα έξοδα αναψυκτικών στον πίνακα που ξεκινά από το κελί F7. Η επόμενη οδηγία βρίσκεται στο κελί A14.","Χώρος","Εκτιμώμενα","Πραγματικά",null,"Αναψυκτικά","Εκτιμώμενα","Πραγματικά"]
[null,"Έξοδα αίθουσας και σάλας",{"v":500,"d":"500.00 €"},{"v":250,"d":"250.00 €"},null,"Φαγητό"]
[null,"Προσωπικό χώρου",{"v":400,"d":"400.00 €"},{"v":50,"d":"50.00 €"},null,"Ποτά"]
[null,"Εξοπλισμός",{"$nulls":3},"Τραπεζομάντιλα"]
[null,"Τραπέζια και καρέκλες",{"$nulls":3},"Προσωπικό και φιλοδωρήματα"]
[null,"Άθροισμα",{"$f":"SUBTOTAL(109,ΈξοδαΧώρου[Εκτιμώμενα])","v":{"v":900,"d":"900.00 €"}},{"$f":"SUBTOTAL(109,ΈξοδαΧώρου[Πραγματικά])","v":{"v":300,"d":"300.00 €"}},null,"Άθροισμα",{"$f":"SUBTOTAL(109,ΈξοδαΑναψυκτικών[Εκτιμώμενα])","v":{"v":0,"d":"0.00 €"}},{"$f":"SUBTOTAL(109,ΈξοδαΑναψυκτικών[Πραγματικά])","v":{"v":0,"d":"0.00 €"}}]
[]
["Εισαγάγετε τα έξοδα διακόσμησης στον πίνακα που ξεκινά από το κελί στα δεξιά και τα έξοδα προγράμματος στον πίνακα που ξεκινάει από το κελί F14. Η επόμενη οδηγία βρίσκεται στο κελί A22.","Διακοσμήσεις","Εκτιμώμενα","Πραγματικά",null,"Πρόγραμμα","Εκτιμώμενα","Πραγματικά"]
[null,"Λουλούδια",{"v":200,"d":"200.00 €"},{"v":50,"d":"50.00 €"},null,"Καλλιτέχνες"]
[null,"Κεριά",{"$nulls":3},"Ηχεία"]
[null,"Φωτισμός",{"$nulls":3},"Ταξίδι"]
[null,"Μπαλόνια",{"$nulls":3},"Ξενοδοχείο"]
[null,"Χαρτικά",{"$nulls":3},"Άλλο"]
[null,"Άθροισμα",{"$f":"SUBTOTAL(109,ΈξοδαΔιακόσμησης[Εκτιμώμενα])","v":{"v":200,"d":"200.00 €"}},{"$f":"SUBTOTAL(109,ΈξοδαΔιακόσμησης[Πραγματικά])","v":{"v":50,"d":"50.00 €"}},null,"Άθροισμα",{"$f":"SUBTOTAL(109,ΈξοδαΠρογράμματος[Εκτιμώμενα])","v":{"v":0,"d":"0.00 €"}},{"$f":"SUBTOTAL(109,ΈξοδαΠρογράμματος[Πραγματικά])","v":{"v":0,"d":"0.00 €"}}]
[]
["Εισαγάγετε τα έξοδα δημοσιότητας στον πίνακα που ξεκινά από το κελί στα δεξιά και τα έξοδα βραβείων στον πίνακα που ξεκινάει από το κελί F22. Η επόμενη οδηγία βρίσκεται στο κελί A28.","Δημοσιότητα","Εκτιμώμενα","Πραγματικά",null,"Βραβεία","Εκτιμώμενα","Πραγματικά"]
[null,"Γραφικά",{"v":45,"d":"45.00 €"},{"v":45,"d":"45.00 €"},null,"Κορδέλες/Πλακέτες/Τρόπαια"]
[null,"Φωτοαντιγραφή/Εκτύπωση",{"$nulls":3},"Δώρα"]
[null,"Ταχυδρομικά τέλη",{"$nulls":3},"Άθροισμα",{"$f":"SUBTOTAL(109,ΈξοδαΒραβείων[Εκτιμώμενα])","v":{"v":0,"d":"0.00 €"}},{"$f":"SUBTOTAL(109,ΈξοδαΒραβείων[Πραγματικά])","v":{"v":0,"d":"0.00 €"}}]
[null,"Άθροισμα",{"$f":"SUBTOTAL(109,ΈξοδαΔημοσιότητας[Εκτιμώμενα])","v":{"v":45,"d":"45.00 €"}},{"$f":"SUBTOTAL(109,ΈξοδαΔημοσιότητας[Πραγματικά])","v":{"v":45,"d":"45.00 €"}}]
[]
["Εισαγάγετε τα διάφορα έξοδα στον πίνακα που ξεκινά από το από το κελί στα δεξιά.","Διάφορα","Εκτιμώμενα","Πραγματικά"]
[null,"Τηλέφωνο"]
[null,"Μετακινήσεις"]
[null,"Επιστολόχαρτα"]
[null,"Υπηρεσίες φαξ"]
[null,"Άθροισμα",{"$f":"SUBTOTAL(109,ΔιάφοραΈξοδα[Εκτιμώμενα])","v":{"v":0,"d":"0.00 €"}},{"$f":"SUBTOTAL(109,ΔιάφοραΈξοδα[Πραγματικά])","v":{"v":0,"d":"0.00 €"}}]

{"sheet":"Έσοδα","index":2,"n_rows":30,"n_cols":7,"rows_kept":30,"merged":[[1,1,1,6],[2,5,2,6]]}
["Εισαγάγετε τα εκτιμώμενα και τα πραγματικά έσοδα για κάθε κατηγορία στους αντίστοιχους πίνακες σε αυτό το φύλλο εργασίας. Τα συνολικά έσοδα υπολογίζονται αυτόματα. Σε διάφορα κελιά σε αυτή τη στήλη βρίσκονται χρήσιμες οδηγίες για τον τρόπο χρήσης αυτού του φύλλου εργασίας. Πατήστε το κάτω βέλος για να ξεκινήσετε."]
["Το όνομα εκδήλωσης ενημερώνεται αυτόματα στο κελί στα δεξιά.",{"$f":"Έξοδα!B2","v":"Προϋπολογισμός εκδήλωσης για \nΌνομα εκδήλωσης"}]
["Η ετικέτα έσοδα βρίσκεται στο κελί F3.",{"$nulls":4}," Έσοδα"]
["Η ετικέτα εκτιμώμενα βρίσκεται στο κελί F4 και η ετικέτα πραγματικά στο κελί G4.",{"$nulls":4},"Εκτιμώμενα","Πραγματικά"]
["Η ετικέτα συνολικά έσοδα βρίσκεται στο κελί στα δεξιά. Τα εκτιμώμενα συνολικά έσοδα υπολογίζονται αυτόματα στο κελί F5. Τα πραγματικά συνολικά έσοδα και η ράβδος δεδομένων που απεικονίζει τα  πραγματικά συνολικά έσοδα ενημερώνονται αυτόματα στο κελί G5.","Συνολικά έσοδα",{"$nulls":3},{"$f":"SUM(Προσελεύσεις[[#Totals],[Σύνολο εκτιμώμενων]],ΔιαφημίσειςΠρογράμματος[[#Totals],[Σύνολο εκτιμώμενων]],ΕκθέτεςΚαιΠρομηθευτές[[#Totals],[Σύνολο εκτιμώμενων]],ΠώλησηΣτοιχείου[[#Totals],[Σύνολο εκτιμώμενων]])","v":{"v":1936,"d":"1,936.00 €"}},{"$f":"SUM(Προσελεύσεις[[#Totals],[Σύνολο πραγματικών]],ΔιαφημίσειςΠρογράμματος[[#Totals],[Σύνολο πραγματικών]],ΕκθέτεςΚαιΠρομηθευτές[[#Totals],[Σύνολο πραγματικών]],ΠώλησηΣτοιχείου[[#Totals],[Σύνολο πραγματικών]])","v":{"v":1831,"d":"1,831.00 €"}}]
["Η ετικέτα προσελεύσεις βρίσκεται στο κελί στα δεξιά.","Προσελεύσεις"]
["Εισαγάγετε τον εκτιμώμενο και τον πραγματικό αριθμό προσελεύσεων μαζί με τις τιμές των εισιτηρίων στον πίνακα που ξεκινά από το κελί στα δεξιά. Τα εκτιμώμενα και τα πραγματικά έσοδα από προσελεύσεις υπολογίζονται αυτόματα. Η επόμενη οδηγία βρίσκεται στο κελί A12.","Εκτιμώμενα","Πραγματικά","Τύπος","Τιμή","Σύνολο εκτιμώμενων","Σύνολο πραγματικών"]
[null,300,278,"Ενήλικες @",{"v":5,"d":"5.00 €"},{"$f":"B8*E8","v":{"v":1500,"d":"1,500.00 €"}},{"$f":"C8*E8","v":{"v":1390,"d":"1,390.00 €"}}]
[null,197,195,"Παιδιά @",{"v":2,"d":"2.00 €"},{"$f":"B9*E9","v":{"v":394,"d":"394.00 €"}},{"$f":"C9*E9","v":{"v":390,"d":"390.00 €"}}]
[null,42,51,"Άλλο @",{"v":1,"d":"1.00 €"},{"v":42,"d":"42.00 €"},{"v":51,"d":"51.00 €"}]
[null," ",{"$nulls":3},{"$f":"SUBTOTAL(109,Προσελεύσεις[Σύνολο εκτιμώμενων])","v":{"v":1936,"d":"1,936.00 €"}},{"$f":"SUBTOTAL(109,Προσελεύσεις[Σύνολο πραγματικών])","v":{"v":1831,"d":"1,831.00 €"}}]
["Η ετικέτα διαφημίσεις στο πρόγραμμα βρίσκεται στο κελί στα δεξιά.","Διαφημίσεις στο πρόγραμμα"]
["Εισαγάγετε τον εκτιμώμενο και τον πραγματικό αριθμό των διαφημίσεων στο πρόγραμμα και των τιμών των διαφημίσεων στον πίνακα που ξεκινά από το κελί στα δεξιά. Τα εκτιμώμενα και τα πραγματικά έσοδα από διαφημίσεις υπολογίζονται αυτόματα. Η επόμενη οδηγία βρίσκεται στο κελί A18.","Εκτιμώμενα","Πραγματικά","Τύπος","Τιμή","Σύνολο εκτιμώμενων","Σύνολο πραγματικών"]
[{"$nulls":3},"Εξώφυλλα @",null,{"$f":"B14*E14","v":{"v":0,"d":"0.00 €"}},{"$f":"C14*E14","v":{"v":0,"d":"0.00 €"}}]
[{"$nulls":3},"Μισές σελίδες @",null,{"$f":"B15*E15","v":{"v":0,"d":"0.00 €"}},{"$f":"C15*E15","v":{"v":0,"d":"0.00 €"}}]
[{"$nulls":3},"Ένα τέταρτο σελίδας @",null,{"v":0,"d":"0.00 €"},{"v":0,"d":"0.00 €"}]
[null," ",{"$nulls":3},{"$f":"SUBTOTAL(109,ΔιαφημίσειςΠρογράμματος[Σύνολο εκτιμώμενων])","v":{"v":0,"d":"0.00 €"}},{"$f":"SUBTOTAL(109,ΔιαφημίσειςΠρογράμματος[Σύνολο πραγματικών])","v":{"v":0,"d":"0.00 €"}}]
["Η ετικέτα εκθέτες ή προμηθευτές βρίσκεται στο κελί στα δεξιά.","Εκθέτες/Προμηθευτές"]
["Εισαγάγετε τον εκτιμώμενο και τον πραγματικό αριθμό εκθετών και προμηθευτών και τις τιμές των περιπτέρων στον πίνακα που ξεκινά από το κελί στα δεξιά. Τα εκτιμώμενα και τα πραγματικά έσοδα υπολογίζονται αυτόματα. Η επόμενη οδηγία βρίσκεται στο κελί A24.","Εκτιμώμενα","Πραγματικά","Τύπος","Τιμή","Σύνολο εκτιμώμενων","Σύνολο πραγματικών"]
[{"$nulls":3},"Μεγάλα περίπτερα @",null,{"$f":"B20*E20","v":{"v":0,"d":"0.00 €"}},{"$f":"C20*E20","v":{"v":0,"d":"0.00 €"}}]
[{"$nulls":3},"Μεσαίο περίπτερα @",null,{"$f":"B21*E21","v":{"v":0,"d":"0.00 €"}},{"$f":"C21*E21","v":{"v":0,"d":"0.00 €"}}]
[{"$nulls":3},"Μικρά περίπτερα @",null,{"v":0,"d":"0.00 €"},{"v":0,"d":"0.00 €"}]
[null," ",{"$nulls":3},{"$f":"SUBTOTAL(109,ΕκθέτεςΚαιΠρομηθευτές[Σύνολο εκτιμώμενων])","v":{"v":0,"d":"0.00 €"}},{"$f":"SUBTOTAL(109,ΕκθέτεςΚαιΠρομηθευτές[Σύνολο πραγματικών])","v":{"v":0,"d":"0.00 €"}}]
["Η ετικέτα πώληση ειδών βρίσκεται στο κελί στα δεξιά.","Πώληση ειδών"]
["Εισαγάγετε τον εκτιμώμενο και τον πραγματικό αριθμό των πωληθέντων ειδών και των τιμών τους στον πίνακα που ξεκινά από το κελί στα δεξιά. Τα εκτιμώμενα και τα πραγματικά έσοδα υπολογίζονται αυτόματα.","Εκτιμώμενα","Πραγματικά","Τύπος","Τιμή","Σύνολο εκτιμώμενων","Σύνολο πραγματικών"]
[{"$nulls":3},"Είδη @",null,{"$f":"B26*E26","v":{"v":0,"d":"0.00 €"}},{"$f":"C26*E26","v":{"v":0,"d":"0.00 €"}}]
[{"$nulls":3},"Είδη @",null,{"$f":"B27*E27","v":{"v":0,"d":"0.00 €"}},{"$f":"C27*E27","v":{"v":0,"d":"0.00 €"}}]
[{"$nulls":3},"Είδη @",null,{"v":0,"d":"0.00 €"},{"v":0,"d":"0.00 €"}]
[{"$nulls":3},"Είδη @",null,{"v":0,"d":"0.00 €"},{"v":0,"d":"0.00 €"}]
[null," ",{"$nulls":3},{"$f":"SUBTOTAL(109,ΠώλησηΣτοιχείου[Σύνολο εκτιμώμενων])","v":{"v":0,"d":"0.00 €"}},{"$f":"SUBTOTAL(109,ΠώλησηΣτοιχείου[Σύνολο πραγματικών])","v":{"v":0,"d":"0.00 €"}}]

{"sheet":"Σύνοψη","index":3,"n_rows":9,"n_cols":4,"rows_kept":9,"merged":[[1,1,1,3],[2,2,2,3],[8,1,8,4],[9,1,9,3]]}
["Η σύνοψη κερδών/ζημιών και το γράφημα που εμφανίζει τα συνολικά έσοδα και τα συνολικά έξοδα ενημερώνονται αυτόματα σε αυτό το φύλλο εργασίας. Σε διάφορα κελιά σε αυτή τη στήλη βρίσκονται χρήσιμες οδηγίες για τον τρόπο χρήσης αυτού του φύλλου εργασίας. Πατήστε το κάτω βέλος για να ξεκινήσετε."]
["Το όνομα εκδήλωσης ενημερώνεται αυτόματα στο κελί στα δεξιά.",{"$f":"Έξοδα!B2","v":"Προϋπολογισμός εκδήλωσης για \nΌνομα εκδήλωσης"}]
["Η ετικέτα σύνοψη κερδών/ζημιών βρίσκεται στο κελί C3. Η επόμενη οδηγία βρίσκεται στο κελί A5.",null,"Σύνοψη κερδών/ζημιών"]
[]
["Ο πίνακας Σύνολο που ξεκινάει στο κελί στα δεξιά ενημερώνεται αυτόματα. Η επόμενη οδηγία βρίσκεται στο κελί A9.","Σύνολο","Εκτιμώμενα","Πραγματικά"]
[null,"Συνολικά έσοδα",{"$f":"Έσοδα!F5","v":{"v":1936,"d":"1,936.00 €"}},{"$f":"Έσοδα!G5","v":{"v":1831,"d":"1,831.00 €"}}]
[null,"Συνολικά έξοδα",{"$f":"Έξοδα!G5","v":{"v":1145,"d":"1,145.00 €"}},{"$f":"Έξοδα!H5","v":{"v":395,"d":"395.00 €"}}]
[null,"Συνολικό κέρδος (ή ζημιά)",{"$f":"C6-C7","v":{"v":791,"d":"791.00 €"}},{"$f":"D6-D7","v":{"v":1436,"d":"1,436.00 €"}}]
["Το γράφημα ομαδοποιημένων στηλών που εμφανίζει τη σύγκριση των συνολικών εκτιμώμενων με τα συνολικά πραγματική έσοδα και έξοδα βρίσκεται στο κελί στα δεξιά.","Το γράφημα ομαδοποιημένων στηλών που εμφανίζει τη σύγκριση των συνολικών εκτιμώμενων με τα συνολικά πραγματική έσοδα και έξοδα βρίσκεται σε αυτό το κελί."]